fUST/lending_fUST_20250103
["ID","MTS","AMOUNT","RATE_DAILY","PERIOD"]
[347486295,1735866641269,-500.0,0.00020273,3]
[347486296,1735866641278,-1185.16,0.00020273,3]
[347486297,1735866641287,-500.0,0.00020273,3]
[347486298,1735866641297,-500.0,0.00020273,3]
[347486299,1735866641306,-506.47678182,0.00020273,3]
[347486300,1735866641315,-500.0,0.00020273,3]
[347486301,1735866641324,-568.33,0.00020273,3]
[347486302,1735866641334,-500.0,0.00020273,3]
[347486303,1735866641343,-1472.03,0.00020273,3]
[347486304,1735866641352,-564.15,0.00020273,3]
[347486305,1735866641362,-500.0,0.00020273,3]
[347486306,1735866641371,-674.45,0.00020273,3]
[347486307,1735866641380,-776.82,0.00020273,3]
[347486308,1735866641389,-635.19,0.00020273,3]
[347486309,1735866641401,-500.0,0.00020273,3]
[347486310,1735866641410,-500.0,0.00020273,3]
[347486311,1735866641422,-562.36,0.00020273,3]
[347486312,1735866641431,-2285.22,0.00020273,3]
[347486313,1735866641440,-582.14,0.00020273,3]
[347486314,1735866641449,-656.84,0.00020273,3]
[347486315,1735866641458,-500.0,0.00020273,3]
[347486316,1735866641467,-500.0,0.00020273,3]
[347486317,1735866641477,-1005.62,0.00020273,3]
[347486318,1735866641486,-500.0,0.00020273,3]
[347486319,1735866641496,-1050.6,0.00020273,3]
[347486320,1735866641506,-500.0,0.00020273,3]
[347486321,1735866641516,-1242.68,0.00020273,3]
[347486322,1735866641525,-500.0,0.00020273,3]
[347486323,1735866641535,-677.22,0.00020273,3]
[347486324,1735866641544,-542.17,0.00020273,3]
[347486325,1735866641553,-6975.89,0.00020273,3]
[347486326,1735866641563,-500.0,0.00020273,3]
[347486327,1735866641572,-1373.18,0.00020273,3]
[347486328,1735866641582,-533.85,0.00020273,3]
[347486329,1735866641591,-10763.2,0.00020273,3]
[347486330,1735866641601,-1002.7,0.00020273,3]
[347486331,1735866641610,-632.89,0.00020273,3]
[347486332,1735866641620,-500.0,0.00020273,3]
[347486333,1735866641629,-27402.1,0.00020273,3]
[347486334,1735866641638,-853.78,0.00020273,3]
[347486335,1735866641648,-500.0,0.00020273,3]
[347486336,1735866641657,-3470.03,0.00020273,3]
[347486337,1735866641667,-1215.97,0.00020273,3]
[347486338,1735866641677,-744.73,0.00020273,3]
[347486339,1735866641686,-599.25,0.00020273,3]
[347486340,1735866641696,-417.41548281,0.00020273,3]
[347486341,1735866641704,-500.0,0.00020273,3]
[347486342,1735866641714,-2174.68,0.00020273,3]
[347486343,1735866641724,-954.44,0.00020273,3]
[347486344,1735866641734,-500.0,0.00020273,2]
[347486345,1735866641743,-568.23158636,0.00020273,3]
[347486346,1735866641752,-500.0,0.00020273,3]
[347486347,1735866641761,-1159.06,0.00020273,3]
[347486348,1735866641771,-902.27,0.00020273,3]
[347486349,1735866641780,-500.0,0.00020273,3]
[347486350,1735866641790,-532.17,0.00020273,3]
[347486351,1735866641799,-1474.0,0.00020273,3]
[347486352,1735866641808,-222.36151136,0.00020273,3]
[347486353,1735866641818,-499.0,0.00020273,2]
[347486354,1735866641829,-1021.5,0.00020273,3]
[347486355,1735866641838,-500.0,0.00020273,3]
[347486356,1735866641847,-607.19,0.00020273,3]
[347486357,1735866641857,-559.83,0.00020273,3]
[347486358,1735866641867,-500.0,0.00020273,3]
[347486359,1735866641876,-5707.05,0.00020273,3]
[347486360,1735866641886,-150.92,0.00020273,3]
[347486361,1735866641896,-2172.59,0.00020273,3]
[347486362,1735866641906,-500.0,0.00020273,3]
[347486363,1735866641915,-960.55,0.00020273,3]
[347486364,1735866641925,-778.68,0.00020273,3]
[347486365,1735866641935,-249.3,0.00020296,5]
[347486366,1735866641944,-1686.66317023,0.00020314,2]
[347486368,1735866642542,-500.0,0.00019178,2]
[347486369,1735866642552,-500.0,0.00019452,3]
[347486370,1735866642561,-500.0,0.00019473,2]
[347486371,1735866642571,-500.0,0.00019726,3]
[347486372,1735866642580,-500.0,0.0002,3]
[347486373,1735866642590,-500.0,0.00020273,3]
[347486374,1735866642600,-500.0,0.00020273,3]
[347486375,1735866642610,-750.65260636,0.00020314,2]
[347486376,1735866642619,-2437.31577659,0.00020417,2]
[347486377,1735866642629,-303.50078995,0.00020447,2]
[347486378,1735866642638,-400.0,0.00020447,2]
[347486379,1735866642649,-160.0,0.00020486,4]
[347486380,1735866642658,-3413.17441723,0.000205,3]
[347486381,1735866642667,-362.523794,0.00020521,2]
[347486382,1735866642677,-2437.31577659,0.00020521,2]
[347486383,1735866642687,-249.3,0.0002053,6]
[347486384,1735866642697,-3302.37,0.00020547,3]
[347486385,1735866642706,-500.0,0.00020547,3]
[347486386,1735866642715,-500.0,0.00020547,3]
[347486387,1735866642724,-2343.04,0.00020547,3]
[347486388,1735866642734,-500.0,0.00020547,3]
[347486389,1735866642743,-500.0,0.00020547,3]
[347486390,1735866642753,-500.0,0.00020547,3]
[347486391,1735866642763,-500.0,0.00020547,3]
[347486392,1735866642772,-692.42,0.00020547,3]
[347486393,1735866642781,-500.0,0.00020547,3]
[347486394,1735866642791,-977.98,0.00020547,2]
[347486395,1735866642800,-500.0,0.00020547,3]
[347486397,1735866642809,-500.0,0.00020547,3]
[347486399,1735866642819,-500.0,0.00020547,3]
[347486401,1735866642828,-593.95,0.00020547,3]
[347486403,1735866642838,-500.0,0.00020547,3]
[347486405,1735866642847,-500.0,0.00020547,3]
[347486407,1735866642856,-500.0,0.00020547,3]
[347486409,1735866642865,-500.0,0.00020547,3]
[347486411,1735866642874,-500.0,0.00020547,3]
[347486412,1735866642884,-522.47,0.00020547,3]
[347486413,1735866642893,-500.0,0.00020547,3]
[347486414,1735866642906,-718.82,0.00020547,3]
[347486415,1735866642916,-399.78,0.00020547,3]
[347486416,1735866642926,-500.0,0.00020547,3]
[347486417,1735866642935,-1096.79,0.00020547,3]
[347486418,1735866642945,-955.25,0.00020547,3]
[347486419,1735866642957,-500.0,0.00020547,3]
[347486420,1735866642966,-946.66,0.00020547,3]
[347486421,1735866642975,-693.56,0.00020547,3]
[347486422,1735866642985,-500.0,0.00020547,3]
[347486423,1735866642995,-703.19,0.00020547,3]
[347486424,1735866643004,-585.94,0.00020547,3]
[347486425,1735866643013,-500.0,0.00020547,3]
[347486426,1735866643022,-632.92,0.00020547,3]
[347486427,1735866643031,-500.0,0.00020547,3]
[347486428,1735866643040,-500.0,0.00020547,3]
[347486429,1735866643050,-500.0,0.00020547,3]
[347486431,1735866643059,-1305.02,0.00020547,3]
[347486432,1735866643068,-544.3,0.00020547,3]
[347486433,1735866643077,-500.0,0.00020547,3]
[347486434,1735866643086,-698.33,0.00020547,3]
[347486435,1735866643095,-500.0,0.00020547,3]
[347486436,1735866643105,-1185.16,0.00020547,3]
[347486437,1735866643115,-500.0,0.00020547,3]
[347486438,1735866643124,-500.0,0.00020547,3]
[347486439,1735866643133,-500.0,0.00020547,3]
[347486440,1735866643143,-568.33,0.00020547,3]
[347486441,1735866643155,-500.0,0.00020547,3]
[347486442,1735866643164,-1472.03,0.00020547,3]
[347486443,1735866643173,-564.15,0.00020547,3]
[347486444,1735866643182,-500.0,0.00020547,3]
[347486445,1735866643191,-776.82,0.00020547,3]
[347486446,1735866643200,-635.19,0.00020547,3]
[347486447,1735866643209,-500.0,0.00020547,3]
[347486448,1735866643220,-500.0,0.00020547,3]
[347486449,1735866643229,-1000.0,0.00020547,2]
[347486450,1735866643241,-1026.51554692,0.00020547,3]
[347486451,1735866643251,-2285.22,0.00020547,3]
[347486452,1735866643260,-582.14,0.00020547,3]
[347486453,1735866643270,-656.84,0.00020547,3]
[347486454,1735866643279,-500.0,0.00020547,3]
[347486455,1735866643288,-1005.62,0.00020547,3]
[347486456,1735866643299,-542.41,0.00020547,3]
[347486457,1735866643308,-1050.6,0.00020547,3]
[347486458,1735866643318,-500.0,0.00020547,3]
[347486459,1735866643327,-1242.68,0.00020547,3]
[347486460,1735866643336,-500.0,0.00020547,3]
[347486461,1735866643346,-677.22,0.00020547,3]
[347486462,1735866643355,-542.17,0.00020547,3]
[347486463,1735866643365,-6975.89,0.00020547,3]
[347486464,1735866643375,-500.0,0.00020547,3]
[347486465,1735866643384,-1373.18,0.00020547,3]
[347486467,1735866643395,-10763.2,0.00020547,3]
[347486469,1735866643405,-1002.7,0.00020547,3]
[347486470,1735866643414,-632.89,0.00020547,3]
[347486471,1735866643423,-500.0,0.00020547,3]
[347486472,1735866643433,-27402.1,0.00020547,3]
[347486473,1735866643442,-853.78,0.00020547,3]
[347486474,1735866643451,-500.0,0.00020547,3]
[347486475,1735866643461,-3470.03,0.00020547,3]
[347486476,1735866643471,-1215.97,0.00020547,3]
[347486477,1735866643481,-744.73,0.00020547,3]
[347486478,1735866643490,-599.25,0.00020547,3]
[347486479,1735866643499,-500.0,0.00020547,3]
[347486480,1735866643509,-2174.68,0.00020547,3]
[347486481,1735866643518,-954.44,0.00020547,3]
[347486482,1735866643527,-500.0,0.00020547,2]
[347486483,1735866643655,-500.0,0.00020547,3]
[347486484,1735866643665,-1159.06,0.00020547,3]
[347486485,1735866643675,-902.27,0.00020547,3]
[347486486,1735866643684,-500.0,0.00020547,3]
[347486487,1735866643694,-532.17,0.00020547,3]
[347486488,1735866643704,-1474.0,0.00020547,3]
[347486489,1735866643713,-1021.5,0.00020547,3]
[347486490,1735866643723,-502.8675419,0.00020547,3]
[347486491,1735866643733,-607.19,0.00020547,3]
[347486492,1735866643742,-559.83,0.00020547,3]
[347486493,1735866643751,-500.0,0.00020547,3]
[347486494,1735866643761,-2172.59,0.00020547,3]
[347486495,1735866643770,-5707.05,0.00020547,3]
[347486496,1735866643779,-500.0,0.00020547,3]
[347486497,1735866643789,-960.55,0.00020547,3]
[347486498,1735866643798,-778.68,0.00020547,3]
[347486499,1735866643806,-500.0,0.00020547,3]
[347486500,1735866643816,-160.0,0.00020548,5]
[347486501,1735866643825,-2437.31577659,0.00020624,2]
[347486502,1735866643835,-151.0,0.000207,4]
[347486503,1735866643844,-4044.4,0.000207,2]
[347486504,1735866643854,-362.523794,0.00020712,2]
[347486505,1735866643864,-2437.31577659,0.00020728,2]
[347486506,1735866643873,-249.3,0.00020764,6]
[347486507,1735866643883,-500.0,0.0002079,2]
[347486508,1735866643893,-342.0,0.000208,3]
[347486509,1735866643903,-652.06945876,0.00020808,2]
[347486510,1735866643915,-1000.0,0.00020808,2]
[347486511,1735866643924,-3302.37,0.00020821,3]
[347486512,1735866643933,-500.0,0.00020821,3]
[347486513,1735866643943,-500.0,0.00020821,3]
[347486514,1735866643956,-2343.04,0.00020821,3]
[347486515,1735866643969,-359.5,0.00020821,3]
[347486516,1735866643979,-500.0,0.00020821,3]
[347486517,1735866643988,-500.0,0.00020821,3]
[347486518,1735866643999,-692.42,0.00020821,3]
[347486519,1735866644008,-342.53582524,0.00020821,3]
[347486520,1735866644018,-977.98,0.00020821,2]
[347486521,1735866644029,-500.0,0.00020821,3]
[347486522,1735866644039,-500.0,0.00020821,3]
[347486523,1735866644049,-500.0,0.00020821,3]
[347486524,1735866644058,-593.95,0.00020821,3]
[347486525,1735866644068,-500.0,0.00020821,3]
[347486526,1735866644079,-500.0,0.00020821,3]
[347486527,1735866644089,-500.0,0.00020821,3]
[347486528,1735866644100,-500.0,0.00020821,3]
[347486529,1735866644111,-500.0,0.00020821,3]
[347486530,1735866644121,-522.47,0.00020821,3]
[347486531,1735866644131,-500.0,0.00020821,3]
[347486532,1735866644141,-718.82,0.00020821,3]
[347486533,1735866644152,-500.0,0.00020821,3]
[347486534,1735866644161,-1096.79,0.00020821,3]
[347486535,1735866644171,-955.25,0.00020821,3]
[347486536,1735866644180,-500.0,0.00020821,3]
[347486537,1735866644190,-946.66,0.00020821,3]
[347486538,1735866644199,-693.56,0.00020821,3]
[347486539,1735866644208,-500.0,0.00020821,3]
[347486540,1735866644218,-703.19,0.00020821,3]
[347486541,1735866644228,-585.94,0.00020821,3]
[347486542,1735866644237,-500.0,0.00020821,3]
[347486543,1735866644246,-632.92,0.00020821,3]
[347486544,1735866644256,-485.11,0.00020821,3]
[347486545,1735866644265,-500.0,0.00020821,3]
[347486546,1735866644275,-608.9,0.00020821,3]
[347486547,1735866644285,-1305.02,0.00020821,3]
[347486548,1735866644295,-544.3,0.00020821,3]
[347486549,1735866644304,-500.0,0.00020821,3]
[347486550,1735866644313,-698.33,0.00020821,3]
[347486551,1735866644323,-267.64799175,0.00020821,3]
[347486552,1735866644333,-1185.16,0.00020821,3]
[347486553,1735866644342,-270.45766353,0.00020821,3]
[347486554,1735866644351,-500.0,0.00020821,3]
[347486555,1735866644361,-500.0,0.00020821,3]
[347486556,1735866644370,-568.33,0.00020821,3]
[347486557,1735866644380,-500.0,0.00020821,3]
[347486558,1735866644389,-1472.03,0.00020821,3]
[347486559,1735866644399,-564.15,0.00020821,3]
[347486560,1735866644408,-500.0,0.00020821,3]
[347486561,1735866644418,-776.82,0.00020821,3]
[347486562,1735866644427,-635.19,0.00020821,3]
[347486563,1735866644437,-500.0,0.00020821,3]
[347486564,1735866644446,-500.0,0.00020821,3]
[347486565,1735866644455,-2285.22,0.00020821,3]
[347486566,1735866644465,-582.14,0.00020821,3]
[347486567,1735866644474,-656.84,0.00020821,3]
[347486568,1735866644483,-168.95391297,0.00020821,3]
[347486569,1735866644492,-1005.62,0.00020821,3]
[347486570,1735866644501,-1050.6,0.00020821,3]
[347486571,1735866644510,-500.0,0.00020821,3]
[347486572,1735866644519,-1242.68,0.00020821,3]
[347486573,1735866644529,-500.0,0.00020821,3]
[347486574,1735866644539,-677.22,0.00020821,3]
[347486575,1735866644548,-542.17,0.00020821,3]
[347486576,1735866644558,-500.0,0.00020821,3]
[347486577,1735866644568,-6975.89,0.00020821,3]
[347486578,1735866644577,-1373.18,0.00020821,3]
[347486579,1735866644587,-10763.2,0.00020821,3]
[347486580,1735866644596,-1002.7,0.00020821,3]
[347486581,1735866644605,-618.541738,0.00020821,2]
[347486582,1735866644614,-618.541738,0.00020821,2]
[347486583,1735866644624,-632.89,0.00020821,3]
[347486584,1735866644633,-500.0,0.00020821,3]
[347486585,1735866644642,-27402.1,0.00020821,3]
[347486586,1735866644652,-345.09834,0.00020821,2]
[347486587,1735866644661,-853.78,0.00020821,3]
[347486588,1735866644670,-500.0,0.00020821,3]
[347486589,1735866644679,-345.09834,0.00020821,2]
[347486590,1735866644689,-3470.03,0.00020821,3]
[347486591,1735866644699,-1215.97,0.00020821,3]
[347486592,1735866644708,-744.73,0.00020821,3]
[347486593,1735866644718,-599.25,0.00020821,3]
[347486594,1735866644728,-500.0,0.00020821,3]
[347486595,1735866644737,-2174.68,0.00020821,3]
[347486596,1735866644747,-954.44,0.00020821,3]
[347486597,1735866644756,-500.0,0.00020821,2]
[347486598,1735866644765,-500.0,0.00020821,3]
[347486599,1735866644774,-1159.06,0.00020821,3]
[347486600,1735866644783,-902.27,0.00020821,3]
[347486601,1735866644792,-500.0,0.00020821,3]
[347486602,1735866644801,-532.17,0.00020821,3]
[347486603,1735866644810,-1474.0,0.00020821,3]
[347486604,1735866644819,-1021.5,0.00020821,3]
[347486605,1735866644828,-607.19,0.00020821,3]
[347486606,1735866644837,-559.83,0.00020821,3]
[347486607,1735866644846,-500.0,0.00020821,3]
[347486608,1735866644855,-2172.59,0.00020821,3]
[347486609,1735866644864,-5707.05,0.00020821,3]
[347486610,1735866644873,-500.0,0.00020821,3]
[347486611,1735866644882,-960.55,0.00020821,3]
[347486612,1735866644891,-778.68,0.00020821,3]
[347486613,1735866644901,-500.0,0.00020821,3]
[347486614,1735866644910,-151.0,0.00020821,2]
[347486615,1735866644919,-599.66343855,0.0002083,2]
[347486616,1735866644928,-2437.31577659,0.00020831,2]
[347486617,1735866644938,-1000.0,0.00020845,2]
[347486618,1735866644947,-1000.0,0.00020854,2]
[347486619,1735866644958,-540.5682484,0.00020884,2]
[347486620,1735866644967,-13286.6,0.000209,2]
[347486621,1735866644976,-8543.75,0.000209,2]
[347486622,1735866644986,-151.0,0.000209,2]
[347486623,1735866644995,-151.0,0.000209,2]
[347486624,1735866645005,-362.523794,0.00020904,2]
[347486625,1735866645015,-652.92957497,0.00020916,2]
[347486626,1735866645024,-2437.31577659,0.00020934,2]
[347486627,1735866645034,-759.46143599,0.00020995,2]
[347486628,1735866645043,-249.3,0.00020998,6]
[347486629,1735866645054,-3000.0,0.00021,2]
[347486630,1735866645063,-187.0,0.00021,2]
[347486631,1735866645072,-4206.310214,0.0002101,2]
[347486632,1735866645082,-2437.31577659,0.00021038,2]
[347486633,1735866645091,-292.41139759,0.00021094,2]
[347486634,1735866645101,-3302.37,0.00021095,3]
[347486635,1735866645111,-500.0,0.00021095,3]
[347486636,1735866645121,-500.0,0.00021095,3]
[347486637,1735866645131,-2343.04,0.00021095,3]
[347486638,1735866645140,-500.0,0.00021095,3]
[347486639,1735866645150,-500.0,0.00021095,3]
[347486640,1735866645159,-692.42,0.00021095,3]
[347486641,1735866645169,-977.98,0.00021095,2]
[347486642,1735866645178,-500.0,0.00021095,3]
[347486643,1735866645187,-500.0,0.00021095,3]
[347486644,1735866645197,-500.0,0.00021095,3]
[347486645,1735866645207,-593.95,0.00021095,3]
[347486646,1735866645216,-500.0,0.00021095,3]
[347486647,1735866645225,-500.0,0.00021095,3]
[347486648,1735866645234,-500.0,0.00021095,3]
[347486649,1735866645243,-500.0,0.00021095,3]
[347486650,1735866645252,-500.0,0.00021095,3]
[347486651,1735866645261,-161.15996,0.00021095,2]
[347486652,1735866645270,-522.47,0.00021095,3]
[347486653,1735866645280,-500.0,0.00021095,3]
[347486654,1735866645289,-718.82,0.00021095,3]
[347486655,1735866645298,-151.0,0.00021095,2]
[347486656,1735866645307,-151.0,0.00021095,2]
[347486657,1735866645317,-500.0,0.00021095,3]
[347486658,1735866645326,-151.0,0.00021095,2]
[347486659,1735866645335,-1096.79,0.00021095,3]
[347486660,1735866645354,-955.25,0.00021095,3]
[347486661,1735866645365,-151.0,0.00021095,2]
[347486662,1735866645375,-500.0,0.00021095,3]
[347486663,1735866645385,-946.66,0.00021095,3]
[347486664,1735866645396,-693.56,0.00021095,3]
[347486665,1735866645407,-500.0,0.00021095,3]
[347486666,1735866645416,-703.19,0.00021095,3]
[347486667,1735866645426,-585.94,0.00021095,3]
[347486668,1735866645436,-500.0,0.00021095,3]
[347486669,1735866645446,-632.92,0.00021095,3]
[347486670,1735866645456,-500.0,0.00021095,3]
[347486671,1735866645466,-151.0,0.00021095,2]
[347486672,1735866645476,-1305.02,0.00021095,3]
[347486673,1735866645486,-544.3,0.00021095,3]
[347486674,1735866645496,-500.0,0.00021095,3]
[347486675,1735866645506,-698.33,0.00021095,3]
[347486676,1735866645516,-1185.16,0.00021095,3]
[347486678,1735866645526,-500.0,0.00021095,3]
[347486679,1735866645536,-500.0,0.00021095,3]
[347486680,1735866645546,-568.33,0.00021095,3]
[347486681,1735866645556,-500.0,0.00021095,3]
[347486682,1735866645566,-1472.03,0.00021095,3]
[347486683,1735866645575,-564.15,0.00021095,3]
[347486684,1735866645588,-228.85583281,0.00021095,3]
[347486685,1735866645598,-776.82,0.00021095,3]
[347486686,1735866645607,-635.19,0.00021095,3]
[347486687,1735866645616,-227.563579,0.00021095,2]
[347486688,1735866645626,-500.0,0.00021095,3]
[347486689,1735866645635,-500.0,0.00021095,3]
[347486690,1735866645645,-2285.22,0.00021095,3]
[347486692,1735866645655,-227.563579,0.00021095,2]
[347486693,1735866645664,-582.14,0.00021095,3]
[347486694,1735866645674,-656.84,0.00021095,3]
[347486695,1735866645684,-1005.62,0.00021095,3]
[347486696,1735866645694,-1050.6,0.00021095,3]
[347486697,1735866645703,-150.08,0.00021095,3]
[347486698,1735866645713,-150.08,0.00021095,2]
[347486699,1735866645723,-500.0,0.00021095,3]
[347486700,1735866645733,-1242.68,0.00021095,3]
[347486701,1735866645742,-500.0,0.00021095,3]
[347486702,1735866645752,-150.08,0.00021095,3]
[347486703,1735866645762,-150.08,0.00021095,2]
[347486704,1735866645772,-150.08,0.00021095,3]
[347486705,1735866645781,-150.08,0.00021095,3]
[347486706,1735866645791,-150.08,0.00021095,2]
[347486707,1735866645800,-677.22,0.00021095,3]
[347486708,1735866645810,-542.17,0.00021095,3]
[347486709,1735866645820,-500.0,0.00021095,3]
[347486710,1735866645830,-6975.89,0.00021095,3]
[347486711,1735866645839,-1373.18,0.00021095,3]
[347486712,1735866645849,-500.0,0.00021095,3]
[347486713,1735866645859,-500.0,0.00021095,3]
[347486715,1735866645868,-150.08,0.00021095,2]
[347486716,1735866645878,-10763.2,0.00021095,3]
[347486717,1735866645887,-1002.7,0.00021095,3]
[347486718,1735866645897,-632.89,0.00021095,3]
[347486719,1735866645907,-592.29083814,0.00021095,3]
[347486720,1735866645916,-27402.1,0.00021095,3]
[347486721,1735866645926,-853.78,0.00021095,3]
[347486722,1735866645935,-638.05,0.00021095,3]
[347486723,1735866645944,-3470.03,0.00021095,3]
[347486724,1735866645956,-1215.97,0.00021095,3]
[347486725,1735866645966,-744.73,0.00021095,3]
[347486726,1735866645975,-599.25,0.00021095,3]
[347486727,1735866645985,-150.08,0.00021095,3]
[347486728,1735866645995,-150.08,0.00021095,3]
[347486729,1735866646005,-500.0,0.00021095,3]
[347486730,1735866646015,-150.28791376,0.00021095,3]
[347486731,1735866646024,-2174.68,0.00021095,3]
[347486732,1735866646035,-150.21,0.00021095,3]
[347486733,1735866646046,-150.08,0.00021095,3]
[347486734,1735866646055,-954.44,0.00021095,3]
[347486736,1735866646065,-500.0,0.00021095,2]
[347486738,1735866646075,-500.0,0.00021095,3]
[347486739,1735866646086,-1159.06,0.00021095,3]
[347486742,1735866646099,-902.27,0.00021095,3]
[347486744,1735866646113,-500.0,0.00021095,3]
[347486746,1735866646125,-189.99462,0.00021095,2]
[347486748,1735866646136,-532.17,0.00021095,3]
[347486750,1735866646149,-189.99462,0.00021095,2]
[347486752,1735866646158,-1474.0,0.00021095,3]
[347486754,1735866646167,-1021.5,0.00021095,3]
[347486756,1735866646177,-607.19,0.00021095,3]
[347486758,1735866646186,-559.83,0.00021095,3]
[347486760,1735866646196,-622.99849442,0.00021095,3]
[347486762,1735866646206,-2172.59,0.00021095,3]
[347486764,1735866646215,-5707.05,0.00021095,3]
[347486771,1735866646385,-500.0,0.00021095,3]
[347486772,1735866646395,-960.55,0.00021095,3]
[347486773,1735866646405,-785.540492,0.00021095,2]
[347486774,1735866646415,-778.68,0.00021095,3]
[347486775,1735866646424,-785.540492,0.00021095,2]
[347486776,1735866646434,-500.0,0.00021095,3]
[347486777,1735866646443,-362.523794,0.00021096,2]
[347486778,1735866646452,-2437.31577659,0.00021141,2]
[347486779,1735866646461,-759.46143593,0.00021169,2]
[347486780,1735866646471,-154.35,0.00021176,2]
[347486781,1735866646480,-160.0,0.0002118,5]
[347486782,1735866646489,-160.0,0.0002118,5]
[347486783,1735866646499,-120657.0443489,0.000212,2]
[347486784,1735866646508,-151.0,0.000212,2]
[347486785,1735866646518,-151.0,0.000212,2]
[347486786,1735866646528,-249.3,0.00021233,6]
[347486787,1735866646537,-2437.31577659,0.00021245,2]
[347486788,1735866646548,-362.523794,0.00021288,2]
[347486789,1735866646558,-759.46143593,0.00021344,2]
[347486790,1735866646567,-2437.31577659,0.00021348,2]
[347486791,1735866646578,-199.72,0.00021369,3]
[347486792,1735866646587,-150.32,0.00021369,2]
[347486793,1735866646596,-199.99,0.00021369,3]
[347486794,1735866646606,-150.34,0.00021369,3]
[347486795,1735866646616,-199.85,0.00021369,3]
[347486796,1735866646625,-500.0,0.00021369,3]
[347486797,1735866646635,-950.85,0.00021369,3]
[347486798,1735866646644,-150.32,0.00021369,3]
[347486799,1735866646655,-150.32,0.00021369,3]
[347486800,1735866646663,-150.32,0.00021369,3]
[347486801,1735866646674,-3302.37,0.00021369,3]
[347486802,1735866646683,-500.0,0.00021369,3]
[347486803,1735866646693,-500.0,0.00021369,3]
[347486804,1735866646702,-2343.04,0.00021369,3]
[347486805,1735866646712,-240.586949,0.00021369,2]
[347486806,1735866646721,-240.586949,0.00021369,2]
[347486807,1735866646730,-500.0,0.00021369,3]
[347486808,1735866646740,-152.858711,0.00021369,2]
[347486809,1735866646749,-151.0,0.00021369,2]
[347486810,1735866646758,-151.0,0.00021369,2]
[347486811,1735866646768,-151.0,0.00021369,2]
[347486812,1735866646778,-356.81058083,0.00021369,3]
[347486813,1735866646787,-692.42,0.00021369,3]
[347486814,1735866646796,-977.98,0.00021369,2]
[347486815,1735866646806,-500.0,0.00021369,3]
[347486816,1735866646816,-500.0,0.00021369,3]
[347486817,1735866646826,-500.0,0.00021369,3]
[347486818,1735866646835,-593.95,0.00021369,3]
[347486819,1735866646844,-500.0,0.00021369,3]
[347486820,1735866646853,-500.0,0.00021369,3]
[347486821,1735866646863,-151.0,0.00021369,2]
[347486822,1735866646872,-500.0,0.00021369,3]
[347486823,1735866646882,-500.0,0.00021369,3]
[347486824,1735866646891,-151.0,0.00021369,2]
[347486825,1735866646902,-409.014195,0.00021369,2]
[347486826,1735866646912,-409.014195,0.00021369,2]
[347486827,1735866646923,-522.47,0.00021369,3]
[347486828,1735866646932,-189.68301308,0.00021369,3]
[347486829,1735866646941,-718.82,0.00021369,3]
[347486830,1735866646950,-151.0,0.00021369,2]